bitfinex/quotes_SOLUSD_20250903
["timestamp","ask_amount","ask_price","bid_price","bid_amount"]
[1756914470409,3.26409753,211.93,211.92,0.03]
[1756914470607,3.97409753,211.93,211.92,0.03]
[1756914471610,5.81889392,211.93,211.92,0.03]
[1756914473314,36.66,211.95,211.92,0.73]
[1756914473518,0.71,211.96,211.92,0.73]
[1756914473697,5.10889392,211.97,211.93,14.29559401]
[1756914474027,5.10889392,211.97,211.94,0.7]
[1756914474187,5.10889392,211.97,211.92,5.13889392]
[1756914474188,5.81889392,211.97,211.92,14.32559401]
[1756914474386,5.81889392,211.96,211.92,14.32559401]
[1756914474710,5.81889392,211.96,211.93,4.71853914]
[1756914475219,5.10889392,211.95,211.93,4.71853914]
[1756914475409,5.81889392,211.94,211.93,4.71853914]
[1756914475709,42.45889392,211.94,211.93,4.71853914]
[1756914476393,37.35,211.94,211.93,4.71853914]
[1756914476605,42.45889392,211.94,211.93,4.71853914]
[1756914476793,42.45889392,211.94,211.92,0.03]
[1756914476997,5.10889392,211.93,211.92,0.03]
[1756914479001,0.71,211.94,211.92,0.03]
[1756914479190,5.10889392,211.93,211.92,0.03]
[1756914479610,5.81889392,211.93,211.92,0.03]
[1756914480031,42.45889392,211.93,211.92,0.03]
[1756914481112,68.45889392,211.93,211.92,0.03]
[1756914482513,73.56778784,211.93,211.92,0.03]
[1756914482711,73.56778784,211.93,211.89,0.03]
[1756914482712,26.0,211.9,211.89,0.03]
[1756914482911,41.74889392,211.9,211.89,0.03]
[1756914483130,42.45889392,211.9,211.89,0.03]
[1756914484030,7.71153391,211.9,211.89,0.03]
[1756914484413,44.35153391,211.9,211.89,0.03]
[1756914484610,7.71153391,211.9,211.89,0.03]
[1756914484839,44.35153391,211.9,211.89,0.03]
[1756914485324,7.71153391,211.9,211.89,0.03]
[1756914485629,44.35153391,211.9,211.89,0.03]
[1756914487719,33.71153391,211.9,211.89,0.03]
[1756914487935,44.35153391,211.9,211.89,0.03]
[1756914497850,49.07074108,211.9,211.89,0.03]
[1756914498073,44.35153391,211.9,211.89,0.03]
[1756914499149,49.07074108,211.9,211.89,0.03]
[1756914499352,31.10889392,211.88,211.86,0.03]
[1756914499533,46.46876931,211.87,211.86,0.03]
[1756914499733,47.17876931,211.87,211.86,0.03]
[1756914499925,49.07176758,211.87,211.86,0.03]
[1756914501133,49.07176758,211.87,211.84,0.03]
[1756914501134,26.0,211.85,211.84,0.03]
[1756914501334,67.74889392,211.85,211.78,0.71]
[1756914501646,5.10889392,211.79,211.78,0.71]
[1756914501863,5.10889392,211.79,211.71,30.51305693]
[1756914501864,26.0,211.76,211.69,5.43205098]
[1756914502073,26.0,211.76,211.7,0.71]
[1756914502354,37.35,211.75,211.7,0.71]
[1756914502551,36.64,211.74,211.7,0.71]
[1756914502724,36.64,211.73,211.7,0.71]
[1756914502928,63.35,211.73,211.65,0.71]
[1756914503251,5.10889392,211.66,211.65,0.71]
[1756914503440,41.74889392,211.66,211.63,0.71]
[1756914503746,5.10889392,211.64,211.61,0.71]
[1756914503946,5.10889392,211.62,211.61,0.71]
[1756914504460,26.0,211.67,211.61,0.71]
[1756914504635,26.71,211.68,211.61,0.71]
[1756914504636,5.10889392,211.62,211.61,0.71]
[1756914504948,36.64,211.63,211.61,0.71]
[1756914505450,5.10889392,211.62,211.61,0.71]
[1756914505623,5.10889392,211.62,211.61,5.43567459]
[1756914505824,5.10889392,211.62,211.61,4.43567459]
[1756914506450,41.74889392,211.62,211.58,4.72634464]
[1756914506751,36.64,211.62,211.58,4.72634464]
[1756914506938,5.10889392,211.61,211.58,4.72634464]
[1756914507833,5.10889392,211.61,211.6,4.72589792]
[1756914508441,41.74889392,211.62,211.6,4.72589792]
[1756914508827,41.76889392,211.62,211.6,4.72589792]
[1756914509443,41.76889392,211.62,211.6,4.22589792]
[1756914510236,41.76889392,211.62,211.58,4.72622767]
[1756914510637,41.76889392,211.62,211.58,4.89622767]
[1756914510855,41.76889392,211.62,211.58,4.72622767]
[1756914511043,42.47889392,211.62,211.58,4.72622767]
[1756914511246,5.10889392,211.61,211.58,4.72622767]
[1756914511563,0.71,211.63,211.59,5.10889392]
[1756914511733,36.66,211.62,211.58,9.83512159]
[1756914512059,36.66,211.61,211.58,9.83512159]
[1756914513565,36.66,211.61,211.6,0.03]
[1756914513764,42.47889392,211.61,211.6,0.03]
[1756914514745,0.71,211.61,211.6,0.03]
[1756914515055,63.37,211.61,211.6,0.03]
[1756914516259,36.66,211.61,211.6,13.62559401]
[1756914516447,37.37,211.61,211.6,13.62559401]
[1756914516973,37.37,211.61,211.6,0.03]
[1756914517548,36.66,211.61,211.6,0.03]
[1756914517767,36.66,211.61,211.6,13.62559401]
[1756914517981,37.37,211.61,211.6,13.62559401]
[1756914518749,37.37,211.61,211.6,0.03]
[1756914518954,37.37,211.61,211.6,13.62559401]
[1756914519154,37.37,211.61,211.6,0.03]
[1756914519366,36.66,211.61,211.6,0.03]
[1756914519550,36.66,211.61,211.6,18.35149193]
[1756914519952,36.66,211.61,211.6,23.46038585]
[1756914520150,133.4,211.67,211.6,23.63038585]
[1756914520459,37.37,211.66,211.64,13.59559401]
[1756914520843,0.71,211.65,211.63,13.59559401]
[1756914521054,37.37,211.64,211.63,13.59559401]
[1756914521858,37.37,211.64,211.61,18.3212686]
[1756914522171,0.68,211.63,211.61,18.3212686]
[1756914522368,36.66,211.64,211.61,18.3212686]
[1756914522552,0.68,211.63,211.61,18.3212686]
[1756914522754,37.34,211.62,211.61,18.3212686]
[1756914522954,36.66,211.62,211.61,18.3212686]
[1756914523557,36.66,211.62,211.6,5.13889392]
[1756914523558,37.34,211.62,211.6,0.03]
[1756914523764,37.34,211.62,211.6,5.13889392]
[1756914524456,36.66,211.62,211.6,5.13889392]
[1756914524662,37.34,211.62,211.6,5.13889392]
[1756914525467,36.66,211.62,211.61,5.10889392]
[1756914525665,0.68,211.65,211.62,13.59559401]
[1756914525869,134.08,211.67,211.62,5.10889392]
[1756914526056,37.34,211.66,211.6,0.2]
[1756914526257,37.34,211.66,211.64,13.59559401]
[1756914526458,37.34,211.66,211.64,18.70448793]
[1756914526657,36.66,211.66,211.64,18.70448793]
[1756914526867,0.68,211.65,211.64,13.59559401]
[1756914527560,134.08,211.67,211.64,18.32059873]
[1756914527874,37.34,211.66,211.62,13.59559401]
[1756914528091,0.68,211.65,211.63,5.10889392]
[1756914528283,36.66,211.64,211.63,18.70448793]
[1756914528671,37.34,211.64,211.63,13.59559401]
[1756914529163,36.66,211.64,211.63,23.42971592]
[1756914529373,134.08,211.67,211.63,23.42971592]
[1756914529584,26.0,211.68,211.66,5.10889392]
[1756914529792,0.68,211.69,211.67,13.59559401]
[1756914529974,36.66,211.68,211.62,13.59559401]
[1756914530288,137.13577738,211.72,211.62,13.59559401]
[1756914530289,5.10889392,211.65,211.62,13.59559401]
[1756914530461,26.0,211.7,211.62,13.59559401]
[1756914530462,37.34,211.64,211.62,13.59559401]
[1756914530667,37.34,211.63,211.61,13.59559401]
[1756914531587,37.34,211.63,211.61,4.72558637]
[1756914531792,36.66,211.63,211.61,4.72558637]
[1756914531983,37.34,211.63,211.61,4.72558637]
[1756914532183,36.66,211.63,211.61,4.72558637]
[1756914532381,36.66,211.63,211.61,9.83448029]
[1756914533097,0.06,211.65,211.61,9.83448029]
[1756914533305,36.66,211.63,211.61,9.83448029]
[1756914533604,36.66,211.63,211.61,3.27843273]
[1756914534397,36.66,211.64,211.61,3.27843273]
[1756914534792,36.66,211.64,211.63,13.59559401]
[1756914535568,36.66,211.64,211.63,18.320822]
[1756914535792,0.06,211.65,211.63,18.320822]
[1756914536005,0.06,211.65,211.64,16.87402674]
[1756914537683,0.06,211.65,211.64,21.59903146]
[1756914538973,0.06,211.65,211.64,18.32059873]
[1756914539176,0.06,211.65,211.64,21.59903146]
[1756914540695,0.06,211.65,211.64,21.76903146]
[1756914540880,1e-08,211.65,211.64,18.49059873]
[1756914541089,1e-08,211.65,211.64,18.32059873]
[1756914542805,0.68000001,211.65,211.64,13.59559401]
[1756914543176,3.95843274,211.65,211.64,13.59559401]
[1756914543506,29.95843274,211.65,211.64,13.59559401]
[1756914544683,26.68000001,211.65,211.64,13.59559401]
[1756914545502,0.68000001,211.65,211.64,18.32059873]
[1756914545702,0.68000001,211.65,211.64,13.59559401]
[1756914546006,26.68000001,211.65,211.64,13.59559401]
[1756914546185,0.68000001,211.65,211.64,13.59559401]
[1756914547511,37.36000001,211.65,211.64,13.59559401]
[1756914547815,37.36000001,211.65,211.64,18.32059873]
[1756914547980,37.36000001,211.65,211.64,13.59559401]
[1756914548182,36.68000001,211.65,211.64,18.32059873]
[1756914548383,37.36000001,211.65,211.64,18.32059873]
[1756914548715,37.36000001,211.65,211.64,13.59559401]
[1756914549900,37.36000001,211.65,211.64,18.32059873]
[1756914550212,37.36000001,211.65,211.64,18.35059873]
[1756914551100,0.68000001,211.65,211.64,18.35059873]
[1756914551305,37.38000001,211.65,211.64,13.62559401]
[1756914552119,1e-08,211.65,211.64,18.35059873]
[1756914553216,0.65000001,211.65,211.64,13.62559401]
[1756914553405,3.92843274,211.65,211.64,13.62559401]
[1756914554301,0.65000001,211.65,211.64,13.62559401]
[1756914554694,3.92843274,211.65,211.64,13.62559401]
[1756914558398,0.65000001,211.65,211.64,13.62559401]
[1756914558604,3.92843274,211.65,211.64,13.62559401]
[1756914560602,40.58843274,211.65,211.64,13.62559401]
[1756914562316,66.58843274,211.65,211.64,13.62559401]
[1756914562815,29.92843274,211.65,211.64,13.62559401]
[1756914563010,66.58843274,211.65,211.64,13.62559401]
[1756914563701,71.31321421,211.65,211.64,13.62559401]
[1756914564309,66.58843274,211.65,211.64,13.62559401]
[1756914564510,40.58843274,211.65,211.64,13.62559401]
[1756914566213,45.31321421,211.65,211.64,13.62559401]
[1756914567127,42.03478148,211.65,211.64,13.62559401]
[1756914567426,45.31321421,211.65,211.64,13.62559401]
[1756914567637,45.31321421,211.65,211.64,0.03]
[1756914568408,8.65321421,211.65,211.64,0.03]
[1756914568734,45.31321421,211.65,211.64,0.03]
[1756914569306,8.65321421,211.65,211.64,0.03]
[1756914569523,45.31321421,211.65,211.64,0.03]
[1756914569738,8.65321421,211.65,211.64,0.03]
[1756914570028,40.58843274,211.65,211.64,0.03]
[1756914570325,66.58843274,211.65,211.64,0.03]
[1756914570527,71.31321421,211.65,211.64,0.03]
[1756914570910,66.58843274,211.65,211.64,0.03]
[1756914571335,26.65000001,211.65,211.64,0.03]
[1756914571534,63.31000001,211.65,211.64,0.03]
[1756914571715,37.31000001,211.65,211.64,0.03]
[1756914572313,40.58843274,211.65,211.64,0.03]
[1756914572513,45.31321421,211.65,211.64,0.03]
[1756914574547,40.58843274,211.65,211.64,0.03]
[1756914574832,66.58843274,211.65,211.64,0.03]
[1756914575433,71.31321421,211.65,211.61,0.03]
[1756914575636,68.03478148,211.65,211.61,0.03]
[1756914575826,26.0,211.62,211.61,0.03]
[1756914576025,62.66,211.62,211.61,0.03]
[1756914576217,70.11026484,211.62,211.61,0.03]
[1756914576925,33.45026484,211.62,211.61,0.03]
[1756914577129,66.83183211,211.62,211.61,0.03]
[1756914577537,71.55728339,211.62,211.61,0.03]
[1756914579621,74.83571612,211.62,211.61,0.03]
[1756914583229,38.17571612,211.62,211.61,0.03]
[1756914583744,168.29728339,211.62,211.61,0.03]
[1756914584046,171.57571612,211.62,211.61,0.03]
[1756914584251,213.16290773,211.62,211.61,0.03]
[1756914584730,208.23571612,211.62,211.61,0.03]
[1756914584930,173.4708669,211.62,211.61,0.03]
[1756914585249,208.23571612,211.62,211.61,0.03]
[1756914586150,200.30183211,211.62,211.61,0.03]
[1756914586329,202.86026484,211.62,211.61,0.03]
[1756914586723,207.58113887,211.62,211.61,0.03]
[1756914587249,208.30113887,211.62,211.61,0.03]
[1756914587631,203.57568759,211.62,211.61,0.03]
[1756914588160,166.19568759,211.62,211.61,0.03]
[1756914588445,136.91725486,211.62,211.61,0.03]
[1756914588648,3.51725486,211.62,211.61,0.23]
[1756914589029,3.51725486,211.62,211.61,13.82559401]
[1756914589229,40.17725486,211.62,211.61,13.82559401]
[1756914589436,40.17725486,211.62,211.61,13.62559401]
[1756914589728,40.17725486,211.62,211.61,0.03]
[1756914591833,3.51725486,211.62,211.61,0.03]
[1756914592035,40.17725486,211.62,211.61,0.03]
[1756914593752,40.17916158,211.62,211.61,0.03]
[1756914595462,3.51916158,211.62,211.61,0.03]
[1756914595640,1e-08,211.65,211.61,5.35336487]
[1756914595837,40.17879812,211.64,211.63,18.71895888]
[1756914596151,36.66,211.64,211.63,13.59559401]
[1756914596455,40.17875836,211.64,211.63,13.59559401]
[1756914599056,3.51875836,211.64,211.63,13.59559401]
[1756914599242,40.16912178,211.64,211.63,13.59559401]
[1756914600151,40.88912178,211.64,211.63,13.59559401]
[1756914600555,40.16912178,211.64,211.63,13.59559401]
[1756914600738,46.01248665,211.64,211.63,13.59559401]
[1756914601154,40.88912178,211.64,211.63,13.59559401]
[1756914601338,43.67634921,211.64,211.63,13.59559401]
[1756914601852,44.39634921,211.64,211.63,13.59559401]
[1756914603362,44.45634921,211.64,211.63,13.59559401]
[1756914604662,44.45634921,211.64,211.61,0.03]
[1756914604663,54.30476315,211.64,211.61,0.03]
[1756914604833,31.12336487,211.62,211.61,0.03]
[1756914605035,79.52516536,211.62,211.61,0.03]
[1756914605243,80.24516536,211.62,211.61,0.03]
[1756914606460,80.24025695,211.62,211.61,0.03]
[1756914606663,75.11689208,211.62,211.61,0.03]
[1756914606843,80.24025695,211.62,211.61,0.03]
[1756914607355,82.13549753,211.62,211.61,0.03]
[1756914607861,77.01213266,211.62,211.61,0.03]
[1756914608036,82.13549753,211.62,211.61,0.03]
[1756914610441,77.01213266,211.62,211.61,0.03]
[1756914610641,82.13549753,211.62,211.61,0.03]
[1756914611739,82.65834953,211.62,211.61,0.03]
[1756914612060,87.7817144,211.62,211.61,0.03]
[1756914612555,87.7817144,211.62,211.6,0.03]
[1756914612556,87.7817144,211.62,211.6,1e-08]
[1756914612757,26.0,211.59,211.58,0.03]
[1756914613058,43.78102254,211.59,211.58,0.03]
[1756914613251,85.81783178,211.59,211.58,0.03]
[1756914614036,49.15783178,211.59,211.58,0.03]
[1756914614242,80.69446691,211.59,211.58,0.03]
[1756914614459,85.81783178,211.59,211.58,0.03]
[1756914616760,99.39349579,211.59,211.58,0.03]
[1756914616973,62.73349579,211.59,211.58,0.03]
[1756914617141,99.39349579,211.59,211.58,0.03]
[1756914620269,62.73349579,211.59,211.58,0.03]
[1756914620747,99.39349579,211.59,211.58,0.03]
[1756914621564,52.22400965,211.59,211.58,0.03]
[1756914621768,83.23779278,211.59,211.58,0.03]
[1756914621945,89.02115765,211.59,211.58,0.03]
[1756914622151,93.08727892,211.59,211.58,0.03]
[1756914622656,87.96391405,211.59,211.58,0.03]
[1756914622861,93.74727892,211.59,211.58,0.03]
[1756914625971,88.62391405,211.59,211.58,0.03]
[1756914626165,93.74727892,211.59,211.58,0.03]
[1756914630367,93.74099213,211.59,211.58,0.03]
[1756914630961,99.387209,211.59,211.58,0.03]
[1756914633057,94.26384413,211.59,211.58,0.03]
[1756914633262,99.387209,211.59,211.58,0.03]
[1756914635258,98.727209,211.59,211.58,0.03]
[1756914635581,80.00825012,211.59,211.58,0.03]
[1756914635780,85.13161499,211.59,211.58,0.03]
[1756914637087,48.47161499,211.59,211.58,0.03]
[1756914637266,85.13161499,211.59,211.58,0.03]
[1756914637967,48.47161499,211.59,211.58,0.03]
[1756914638184,85.13161499,211.59,211.58,0.03]
[1756914638885,36.66,211.62,211.58,0.23]
[1756914639082,40.14683329,211.61,211.59,13.59559401]
[1756914639382,3.48683329,211.6,211.58,13.62559401]
[1756914639683,0.06,211.6,211.58,0.03]
[1756914639883,40.14676226,211.59,211.58,13.62559401]
[1756914640387,40.14676226,211.59,211.58,0.03]
[1756914641167,45.27012713,211.59,211.58,0.03]
[1756914641366,40.14676226,211.59,211.58,0.03]
[1756914641673,3.48676226,211.59,211.58,0.03]
[1756914641881,40.16676226,211.59,211.58,0.23]
[1756914642389,43.65596872,211.59,211.58,0.23]
[1756914643873,40.16676226,211.59,211.58,0.23]
[1756914644283,40.16942728,211.59,211.58,0.23]
[1756914644775,40.16942728,211.59,211.58,0.03]
[1756914645301,48.38656551,211.59,211.58,0.03]
[1756914646268,6.98044424,211.59,211.58,0.03]
[1756914646474,3.48942728,211.59,211.58,18.94895888]
[1756914646972,0.06,211.6,211.59,13.59559401]
[1756914647167,0.06,211.6,211.59,18.91895888]
[1756914648214,0.06,211.6,211.59,23.64508015]
[1756914649282,0.06,211.6,211.59,37.85399861]
[1756914652891,0.06,211.6,211.59,37.65399861]
[1756914653494,0.06,211.6,211.59,35.8082001]
[1756914656880,0.06,211.6,211.59,32.33063374]
[1756914657073,0.06,211.6,211.59,30.88207883]
[1756914657688,0.06,211.6,211.59,27.60451247]
[1756914657898,0.72,211.6,211.59,13.39559401]
[1756914658197,0.72,211.6,211.58,16.90316037]
[1756914658496,0.72,211.6,211.58,13.62559401]
[1756914658689,0.72,211.6,211.58,16.90316037]
[1756914658897,0.06,211.6,211.58,16.90316037]
[1756914660103,0.06,211.6,211.59,0.03]
[1756914660478,0.72,211.6,211.59,0.03]
[1756914662684,0.06,211.6,211.59,16.90316037]
[1756914668207,0.06,211.6,211.59,13.62559401]
[1756914668404,0.06,211.6,211.59,16.90316037]
[1756914668612,0.06,211.6,211.59,18.35171528]
[1756914668796,0.06,211.6,211.59,21.62928164]
[1756914668997,0.06,211.6,211.59,16.90316037]
[1756914671194,0.06,211.6,211.59,13.62559401]
[1756914671391,0.72,211.6,211.59,13.62559401]
[1756914671596,0.06,211.6,211.59,16.90316037]
[1756914672216,0.06,211.6,211.59,21.62928164]
[1756914672713,0.06,211.6,211.59,18.35171528]
[1756914672920,0.75,211.6,211.59,21.62928164]
[1756914673426,0.06,211.63,211.6,13.59559401]
[1756914673726,0.06,211.63,211.62,13.59559401]
[1756914673933,0.75,211.63,211.62,13.59559401]
[1756914677018,0.06,211.63,211.62,13.59559401]
[1756914677229,0.06,211.63,211.62,16.87316037]
[1756914677515,0.06,211.63,211.62,21.59861165]
[1756914678415,0.06,211.63,211.62,16.87316037]
[1756914679694,0.06,211.63,211.62,21.59861165]
[1756914680701,0.06,211.63,211.62,16.87316037]
[1756914681319,0.75,211.63,211.62,16.87316037]
[1756914682016,0.06,211.63,211.62,16.87316037]
[1756914682622,0.75,211.63,211.62,16.87316037]
[1756914683418,0.06,211.63,211.62,16.87316037]
[1756914684211,0.06,211.63,211.62,21.59861165]
[1756914684914,0.06,211.64,211.63,13.59559401]
[1756914685220,0.06,211.64,211.63,17.07316037]
[1756914685753,0.06,211.64,211.63,18.96696526]
[1756914686107,0.06,211.64,211.63,23.69219325]
[1756914688316,0.06,211.64,211.63,20.21462689]
[1756914688623,0.06,211.64,211.63,23.49219325]
[1756914690330,0.06,211.64,211.63,23.69219325]
[1756914691114,0.06,211.64,211.63,23.49219325]
[1756914691418,0.06,211.64,211.63,23.69219325]
[1756914691834,0.06,211.64,211.63,23.49219325]
[1756914692530,0.06,211.64,211.63,23.69219325]
[1756914692708,1e-08,211.65,211.64,0.14216157]
[1756914692913,1e-08,211.65,211.64,43.35748351]
[1756914693115,1e-08,211.65,211.64,79.97748351]
[1756914693710,1e-08,211.65,211.64,86.59602417]
[1756914694030,1e-08,211.65,211.64,87.16302473]
[1756914694237,1e-08,211.65,211.64,50.54302473]
[1756914694438,1e-08,211.65,211.64,86.11170103]
[1756914694638,0.69000001,211.65,211.64,20.21413467]
[1756914695212,0.69000001,211.65,211.64,18.32059873]
[1756914695414,0.69000001,211.65,211.64,13.59559401]
[1756914696716,3.96756637,211.65,211.64,13.59559401]
[1756914697446,0.69000001,211.65,211.64,13.59559401]
[1756914698035,3.96756637,211.65,211.64,13.59559401]
[1756914700614,8.69234784,211.65,211.64,13.59559401]
[1756914701333,3.96756637,211.65,211.64,13.59559401]
[1756914702338,0.69000001,211.65,211.64,13.59559401]
[1756914702535,3.96756637,211.65,211.64,13.59559401]
[1756914704015,8.69234784,211.65,211.64,13.59559401]
[1756914704722,0.69000001,211.65,211.64,13.59559401]
[1756914704935,3.96756637,211.65,211.64,13.59559401]
[1756914707147,1e-08,211.65,211.64,18.32059873]
[1756914707342,1e-08,211.65,211.64,13.59559401]
[1756914707937,3.99756637,211.65,211.64,13.59559401]
[1756914710038,8.72234784,211.65,211.64,13.59559401]
[1756914710234,3.99756637,211.65,211.64,13.59559401]
[1756914711047,1e-08,211.65,211.64,13.59559401]
[1756914711346,1e-08,211.65,211.64,18.32059873]
[1756914713948,1e-08,211.65,211.64,13.59559401]
[1756914716049,1e-08,211.65,211.64,13.62559401]
[1756914716546,1e-08,211.65,211.64,18.35059873]
[1756914717520,5.84176835,211.65,211.64,13.62559401]
[1756914719226,0.72000001,211.65,211.64,13.62559401]
[1756914719460,5.84176835,211.65,211.64,13.62559401]
[1756914719645,10.56654982,211.65,211.64,13.62559401]
[1756914720234,0.72000001,211.65,211.64,13.62559401]
[1756914720443,42.46176835,211.65,211.64,13.62559401]
[1756914721557,5.84176835,211.65,211.64,13.62559401]
[1756914722748,10.56654982,211.65,211.64,13.62559401]
[1756914724755,36.56654982,211.65,211.64,0.03]
[1756914725046,10.56654982,211.65,211.64,0.03]
[1756914725928,37.36000001,211.65,211.64,0.03]
[1756914726129,47.20654982,211.65,211.64,0.03]
[1756914738148,51.16497486,211.65,211.63,0.03]
[1756914738349,31.12176834,211.64,211.63,0.03]
[1756914738550,9.84677306,211.64,211.63,0.03]
[1756914738762,10.52677306,211.64,211.63,0.03]
[1756914739064,5.40500472,211.64,211.63,0.03]
[1756914739369,10.52677306,211.64,211.63,0.03]
[1756914741357,47.16677306,211.64,211.63,0.03]
[1756914742800,72.48677306,211.64,211.63,0.03]
[1756914742990,41.36500472,211.64,211.63,0.03]
[1756914743298,46.48677306,211.64,211.63,0.03]
[1756914743900,30.72500472,211.64,211.63,0.03]
[1756914744099,46.48677306,211.64,211.63,0.03]
[1756914744504,41.36500472,211.64,211.63,0.03]
[1756914744682,46.48677306,211.64,211.63,0.03]
[1756914744877,41.36500472,211.64,211.63,0.03]
[1756914745102,46.48677306,211.64,211.63,0.03]
[1756914745487,47.16677306,211.64,211.63,0.03]
[1756914748499,46.48677306,211.64,211.63,0.03]
[1756914748702,47.16677306,211.64,211.63,0.03]
[1756914756585,52.31075978,211.64,211.63,0.03]
[1756914756788,52.31075978,211.64,211.61,0.03]
[1756914756789,26.0,211.62,211.61,0.03]
[1756914757091,67.76176834,211.62,211.61,0.03]
[1756914757298,68.44176834,211.62,211.61,0.03]
[1756914758404,73.16721962,211.62,211.61,0.03]
[1756914759010,73.16721962,211.62,211.6,1e-08]
[1756914759206,5.12176834,211.61,211.59,0.03]
[1756914759408,67.76176834,211.6,211.59,0.03]
[1756914759618,67.76176834,211.6,211.58,0.03]
[1756914759619,73.56353668,211.6,211.58,0.03]
[1756914759913,31.12176834,211.56,211.49,0.2]
[1756914760095,5.12176834,211.5,211.49,0.2]
[1756914760297,41.76176834,211.5,211.49,0.2]
[1756914760920,36.64,211.5,211.49,0.2]
[1756914761213,41.76176834,211.5,211.49,0.2]
[1756914761795,36.64,211.5,211.49,0.2]
[1756914761999,41.76176834,211.5,211.49,0.2]
[1756914765700,41.76176834,211.5,211.47,4.72867762]
[1756914765908,36.64,211.5,211.48,0.2]
[1756914766106,41.76176834,211.5,211.48,0.2]
[1756914766417,5.12176834,211.49,211.48,0.2]
[1756914766717,5.12176834,211.49,211.47,0.2]
[1756914767822,5.12176834,211.49,211.48,0.2]
[1756914768126,5.12176834,211.49,211.46,4.75897992]
[1756914768352,5.12176834,211.49,211.47,0.2]
[1756914768632,5.12176834,211.49,211.45,11.55457393]
[1756914769728,36.64,211.5,211.45,11.55457393]
[1756914770102,5.12176834,211.49,211.46,4.72881937]
[1756914770314,37.34,211.5,211.46,4.72881937]
[1756914770528,5.12176834,211.49,211.46,4.72881937]
[1756914771304,5.12176834,211.48,211.47,13.59559401]
[1756914772834,5.12176834,211.48,211.45,13.59559401]
[1756914773020,5.12176834,211.46,211.45,13.59559401]
[1756914773209,41.76176834,211.46,211.44,0.03]
[1756914773530,5.82176834,211.45,211.44,0.03]
[1756914773725,0.7,211.45,211.44,0.03]
[1756914773925,5.82176834,211.45,211.44,0.03]
[1756914777540,3.98512651,211.45,211.44,0.03]
[1756914780637,3.28512651,211.45,211.44,0.03]
[1756914780844,3.98512651,211.45,211.44,0.03]
[1756914781225,3.28512651,211.45,211.44,0.03]
[1756914781527,39.92512651,211.45,211.44,0.03]
[1756914781836,40.62512651,211.45,211.44,0.03]
[1756914782040,3.98512651,211.45,211.44,0.03]
[1756914782216,39.92512651,211.45,211.44,0.03]
[1756914783317,0.7,211.46,211.44,0.03]
[1756914783514,39.92512651,211.45,211.44,0.03]
[1756914784945,40.62512651,211.45,211.44,0.03]
[1756914785539,39.92512651,211.45,211.44,0.03]
[1756914785733,3.28512651,211.45,211.44,0.03]
[1756914785923,40.62512651,211.45,211.44,0.03]
[1756914787218,36.64,211.45,211.44,0.03]
[1756914787418,39.92512651,211.45,211.44,0.03]
[1756914787626,3.28512651,211.46,211.44,0.03]
[1756914787948,36.64,211.45,211.44,0.03]
[1756914788444,3.28512651,211.46,211.44,0.03]
[1756914788628,36.64,211.45,211.44,0.03]
[1756914789237,37.34,211.45,211.44,0.03]
[1756914789438,36.64,211.45,211.44,0.03]
[1756914790745,36.64,211.45,211.44,13.62559401]
[1756914791142,37.34,211.45,211.44,13.62559401]
[1756914791348,3.28512651,211.46,211.44,13.62559401]
[1756914791549,40.62512651,211.46,211.44,0.03]
[1756914791724,3.97512651,211.45,211.44,0.03]
[1756914798855,3.97512651,211.45,211.44,13.62559401]
[1756914800249,36.64,211.46,211.44,13.62559401]
[1756914800428,36.62,211.45,211.44,13.62559401]
[1756914801138,40.59512651,211.45,211.44,13.62559401]
[1756914802530,40.59512651,211.45,211.44,0.03]
[1756914803231,45.32437692,211.45,211.44,0.03]
[1756914803632,40.59512651,211.45,211.44,0.03]